[Event "Late-Titled-Tuesday-Blitz-March-19-2024"]
[Site "Chess.com"]
[Date "2024.03.19"]
[Round "8"]
[White "ninguno46"]
[Black "Mariia89"]
[Result "1-0"]
[WhiteElo "2542"]
[BlackElo "2290"]
[TimeControl "180+1"]
[EndTime "15:28:17 PDT"]
[Termination "ninguno46 won on time"]

1. e4 {[%clk 0:02:59.2]} 1... c6 {[%clk 0:02:59.4]} 2. d4 {[%clk 0:02:58.7]}
2... d5 {[%clk 0:03:00.3]} 3. exd5 {[%clk 0:02:59.3]} 3... cxd5 {[%clk
0:03:00.6]} 4. Bd3 {[%clk 0:02:59.9]} 4... Nf6 {[%clk 0:03:01.3]} 5. c3 {[%clk
0:03:00.4]} 5... Bg4 {[%clk 0:03:01.2]} 6. Qb3 {[%clk 0:03:00]} 6... Qc8 {[%clk
0:02:56.6]} 7. h3 {[%clk 0:02:58.6]} 7... Bd7 {[%clk 0:02:52.5]} 8. Bf4 {[%clk
0:02:55.5]} 8... Nc6 {[%clk 0:02:52.3]} 9. Nd2 {[%clk 0:02:48.7]} 9... e6 {[%clk
0:02:39.7]} 10. Ngf3 {[%clk 0:02:47.5]} 10... Be7 {[%clk 0:02:39.6]} 11. O-O
{[%clk 0:02:46.7]} 11... O-O {[%clk 0:02:39.4]} 12. Rae1 {[%clk 0:02:45.7]}
12... a6 {[%clk 0:02:36.6]} 13. Ne5 {[%clk 0:02:39.6]} 13... b5 {[%clk
0:02:28.6]} 14. Bg5 {[%clk 0:02:36]} 14... Re8 {[%clk 0:01:59.3]} 15. Qc2 {[%clk
0:02:33.4]} 15... h6 {[%clk 0:01:51.3]} 16. Bh4 {[%clk 0:02:28.7]} 16... b4
{[%clk 0:01:28.9]} 17. f4 {[%clk 0:02:25.7]} 17... bxc3 {[%clk 0:01:27]} 18.
bxc3 {[%clk 0:02:25.7]} 18... Ne4 {[%clk 0:01:04]} 19. Bxe7 {[%clk 0:02:14.3]}
19... Nxd2 {[%clk 0:01:03.4]} 20. Qxd2 {[%clk 0:02:11.3]} 20... Nxe7 {[%clk
0:01:03.1]} 21. Rf3 {[%clk 0:02:05.5]} 21... Bb5 {[%clk 0:00:59.9]} 22. Bb1
{[%clk 0:02:04.2]} 22... Nc6 {[%clk 0:00:45.1]} 23. Qc2 {[%clk 0:02:00.2]} 23...
f5 {[%clk 0:00:41.1]} 24. g4 {[%clk 0:01:57.2]} 24... Nxe5 {[%clk 0:00:38.8]}
25. fxe5 {[%clk 0:01:56.6]} 25... g6 {[%clk 0:00:36.9]} 26. Qd2 {[%clk
0:01:53.6]} 26... Kh7 {[%clk 0:00:33.9]} 27. Kh2 {[%clk 0:01:49.7]} 27... Ra7
{[%clk 0:00:25.6]} 28. Rg1 {[%clk 0:01:48.3]} 28... Rf7 {[%clk 0:00:24.3]} 29.
gxf5 {[%clk 0:01:45.7]} 29... gxf5 {[%clk 0:00:24]} 30. Rfg3 {[%clk 0:01:45.8]}
30... Ree7 {[%clk 0:00:12.5]} 31. Rg6 {[%clk 0:01:42.6]} 31... Qf8 {[%clk
0:00:09.1]} 32. h4 {[%clk 0:01:38.6]} 32... Bc4 {[%clk 0:00:05]} 33. h5 {[%clk
0:01:32.9]} 33... Rb7 {[%clk 0:00:04.6]} 34. R6g2 {[%clk 0:01:22.9]} 34... Rg7
{[%clk 0:00:02.9]} 35. Rxg7+ {[%clk 0:01:19.3]} 35... Rxg7 {[%clk 0:00:02.4]}
36. Rxg7+ {[%clk 0:01:19.2]} 36... Qxg7 {[%clk 0:00:02.7]} 37. Qf4 {[%clk
0:01:17.2]} 37... Qg5 {[%clk 0:00:02.9]} 38. Qf3 {[%clk 0:00:57.8]} 38... Qd2+
{[%clk 0:00:02.9]} 39. Qg2 {[%clk 0:00:56.9]} 39... Qg5 {[%clk 0:00:03]} 40. Bc2
{[%clk 0:00:52.5]} 40... Qxh5+ {[%clk 0:00:02.8]} 41. Kg1 {[%clk 0:00:51.7]}
41... Qg5 {[%clk 0:00:03.4]} 42. Kf2 {[%clk 0:00:51]} 42... Qxg2+ {[%clk
0:00:03]} 43. Kxg2 {[%clk 0:00:51.1]} 43... Kg6 {[%clk 0:00:03.3]} 44. a4 {[%clk
0:00:50.6]} 44... Kg5 {[%clk 0:00:03.6]} 45. a5 {[%clk 0:00:50.1]} 45... h5
{[%clk 0:00:03.9]} 46. Ba4 {[%clk 0:00:49.3]} 46... Kg4 {[%clk 0:00:03.8]} 47.
Bd7 {[%clk 0:00:48.2]} 47... h4 {[%clk 0:00:03.8]} 48. Bxe6 {[%clk 0:00:48.2]}
48... h3+ {[%clk 0:00:03.5]} 49. Kh2 {[%clk 0:00:48.5]} 49... Bf1 {[%clk
0:00:03]} 50. Bc8 {[%clk 0:00:46.6]} 50... Kg5 {[%clk 0:00:03.2]} 51. Bb7 {[%clk
0:00:44.1]} 51... Bg2 {[%clk 0:00:02.5]} 52. Bxa6 {[%clk 0:00:43.8]} 52... f4
{[%clk 0:00:03]} 53. Bd3 {[%clk 0:00:41]} 53... f3 {[%clk 0:00:02.9]} 54. a6
{[%clk 0:00:41]} 54... f2 {[%clk 0:00:01.3]} 55. a7 {[%clk 0:00:40.9]} 55... Be4
{[%clk 0:00:01.8]} 56. Bf1 {[%clk 0:00:40]} 56... Bg2 {[%clk 0:00:02.3]} 57. Be2
{[%clk 0:00:38.6]} 57... Bf1 {[%clk 0:00:03.2]} 58. Bxf1 {[%clk 0:00:38.4]}
58... Kf4 {[%clk 0:00:03.3]} 59. a8=Q {[%clk 0:00:37.3]} 59... Ke3 {[%clk
0:00:04.2]} 60. e6 {[%clk 0:00:36.4]} 1-0

[Event "Late-Titled-Tuesday-Blitz-March-19-2024"]
[Site "Chess.com"]
[Date "2024.03.19"]
[Round "8"]
[White "Romkachess"]
[Black "Pingah9"]
[Result "0-1"]
[WhiteElo "2690"]
[BlackElo "2592"]
[TimeControl "180+1"]
[EndTime "15:28:20 PDT"]
[Termination "Pingah9 won by checkmate"]

1. e4 {[%clk 0:03:00.9]} 1... g6 {[%clk 0:02:57.5]} 2. d4 {[%clk 0:03:00.1]}
2... Bg7 {[%clk 0:02:57.7]} 3. h4 {[%clk 0:03:00.8]} 3... h6 {[%clk 0:02:56.9]}
4. Nf3 {[%clk 0:03:00.3]} 4... c5 {[%clk 0:02:54.2]} 5. Nc3 {[%clk 0:02:58.1]}
5... cxd4 {[%clk 0:02:52.3]} 6. Nxd4 {[%clk 0:02:58.4]} 6... Nc6 {[%clk
0:02:50.8]} 7. Be3 {[%clk 0:02:58.2]} 7... d6 {[%clk 0:02:47.9]} 8. Bc4 {[%clk
0:02:55.6]} 8... Nf6 {[%clk 0:02:43.1]} 9. f3 {[%clk 0:02:48.5]} 9... Bd7 {[%clk
0:02:38.9]} 10. Qd2 {[%clk 0:02:48.2]} 10... Qa5 {[%clk 0:02:36]} 11. Nb3 {[%clk
0:02:46.2]} 11... Qd8 {[%clk 0:02:24.6]} 12. O-O-O {[%clk 0:02:41.8]} 12... a6
{[%clk 0:02:24]} 13. g4 {[%clk 0:02:38.6]} 13... Ne5 {[%clk 0:02:21.6]} 14. Be2
{[%clk 0:02:37.8]} 14... Be6 {[%clk 0:02:12.9]} 15. Nd4 {[%clk 0:02:26.3]} 15...
Qd7 {[%clk 0:02:07.8]} 16. Nxe6 {[%clk 0:02:22.2]} 16... Qxe6 {[%clk 0:02:08.7]}
17. Nd5 {[%clk 0:02:22.2]} 17... Nxd5 {[%clk 0:02:04.7]} 18. Qxd5 {[%clk
0:02:14.5]} 18... Qxd5 {[%clk 0:01:51.5]} 19. Rxd5 {[%clk 0:02:12.3]} 19... Nc6
{[%clk 0:01:49.8]} 20. c3 {[%clk 0:02:09.2]} 20... Rc8 {[%clk 0:01:43.5]} 21.
Kb1 {[%clk 0:01:53.8]} 21... O-O {[%clk 0:01:41.2]} 22. f4 {[%clk 0:01:46.2]}
22... Rfd8 {[%clk 0:01:36.3]} 23. Bb6 {[%clk 0:01:41]} 23... Re8 {[%clk
0:01:34]} 24. h5 {[%clk 0:01:39.2]} 24... Nb8 {[%clk 0:01:21.8]} 25. Be3 {[%clk
0:01:12.9]} 25... Nd7 {[%clk 0:01:21.5]} 26. Bf3 {[%clk 0:01:10.2]} 26... Nf6
{[%clk 0:01:12.6]} 27. Rd2 {[%clk 0:00:59.9]} 27... Rc4 {[%clk 0:01:07.7]} 28.
Rd4 {[%clk 0:00:45.7]} 28... Rc7 {[%clk 0:01:04.6]} 29. hxg6 {[%clk 0:00:40.8]}
29... fxg6 {[%clk 0:01:05.5]} 30. a4 {[%clk 0:00:32.6]} 30... Nd7 {[%clk
0:01:01.8]} 31. Rd5 {[%clk 0:00:30.3]} 31... Nf6 {[%clk 0:00:59.1]} 32. Rd4
{[%clk 0:00:21.7]} 32... Nd7 {[%clk 0:00:58.6]} 33. Rb4 {[%clk 0:00:22.4]} 33...
Rec8 {[%clk 0:00:48.1]} 34. g5 {[%clk 0:00:14.1]} 34... hxg5 {[%clk 0:00:46.2]}
35. fxg5 {[%clk 0:00:07]} 35... Ne5 {[%clk 0:00:32.7]} 36. Bg2 {[%clk
0:00:07.2]} 36... Nc4 {[%clk 0:00:21.7]} 37. Bc1 {[%clk 0:00:06.9]} 37... Ne5
{[%clk 0:00:14.9]} 38. Bh3 {[%clk 0:00:07.1]} 38... Rb8 {[%clk 0:00:10.1]} 39.
Be6+ {[%clk 0:00:07.4]} 39... Kf8 {[%clk 0:00:10.5]} 40. Be3 {[%clk 0:00:07.6]}
40... b5 {[%clk 0:00:07.3]} 41. axb5 {[%clk 0:00:07.1]} 41... Rxb5 {[%clk
0:00:06.8]} 42. Rxb5 {[%clk 0:00:06.6]} 42... axb5 {[%clk 0:00:07.7]} 43. Kc2
{[%clk 0:00:06.5]} 43... b4 {[%clk 0:00:07.1]} 44. Ra1 {[%clk 0:00:06]} 44...
Bh8 {[%clk 0:00:03.2]} 45. Ra8+ {[%clk 0:00:05.8]} 45... Kg7 {[%clk 0:00:03.7]}
46. Bd4 {[%clk 0:00:03.8]} 46... bxc3 {[%clk 0:00:03.2]} 47. bxc3 {[%clk
0:00:04.7]} 47... Kh7 {[%clk 0:00:02.5]} 48. Bg8+ {[%clk 0:00:04.3]} 48... Kg7
{[%clk 0:00:02.5]} 49. Bd5 {[%clk 0:00:05.2]} 49... Kh7 {[%clk 0:00:02.4]} 50.
Kd2 {[%clk 0:00:04.9]} 50... Nf3+ {[%clk 0:00:02.3]} 51. Ke3 {[%clk 0:00:05.4]}
51... Bxd4+ {[%clk 0:00:01.9]} 52. cxd4 {[%clk 0:00:06.3]} 52... Nxg5 {[%clk
0:00:02.3]} 53. Bg8+ {[%clk 0:00:04.5]} 53... Kg7 {[%clk 0:00:02.2]} 54. Bd5
{[%clk 0:00:05]} 54... e6 {[%clk 0:00:02.7]} 55. Ba2 {[%clk 0:00:04.2]} 55...
Rc3+ {[%clk 0:00:02.7]} 56. Kf4 {[%clk 0:00:04.7]} 56... Nf7 {[%clk 0:00:02.8]}
57. Bxe6 {[%clk 0:00:04.9]} 57... Nh6 {[%clk 0:00:02.3]} 58. Ra7+ {[%clk
0:00:05.1]} 58... Kf6 {[%clk 0:00:02.6]} 59. Bd5 {[%clk 0:00:04.7]} 59... g5#
{[%clk 0:00:03.1]} 0-1

[Event "Late-Titled-Tuesday-Blitz-March-19-2024"]
[Site "Chess.com"]
[Date "2024.03.19"]
[Round "8"]
[White "Nicolik"]
[Black "thesupera12"]
[Result "1/2-1/2"]
[WhiteElo "2524"]
[BlackElo "2441"]
[TimeControl "180+1"]
[EndTime "15:28:30 PDT"]
[Termination "Game drawn - insufficient material"]

1. d4 {[%clk 0:03:00.9]} 1... d6 {[%clk 0:02:58.3]} 2. e4 {[%clk 0:03:00.8]}
2... g6 {[%clk 0:02:58.4]} 3. Nc3 {[%clk 0:03:01.4]} 3... Bg7 {[%clk 0:02:59.3]}
4. f4 {[%clk 0:03:01.5]} 4... c5 {[%clk 0:02:58.2]} 5. dxc5 {[%clk 0:02:57.1]}
5... Qa5 {[%clk 0:02:58.7]} 6. Bd2 {[%clk 0:02:47.5]} 6... Qxc5 {[%clk
0:02:57.7]} 7. Nf3 {[%clk 0:02:43.4]} 7... Nf6 {[%clk 0:02:57.2]} 8. Bb5+ {[%clk
0:02:42.6]} 8... Bd7 {[%clk 0:02:56.4]} 9. a4 {[%clk 0:02:42.6]} 9... O-O {[%clk
0:02:55.3]} 10. Ke2 {[%clk 0:02:43]} 10... a6 {[%clk 0:02:53.6]} 11. Bd3 {[%clk
0:02:43]} 11... Nc6 {[%clk 0:02:50.7]} 12. Be3 {[%clk 0:02:42.8]} 12... Qa5
{[%clk 0:02:50.5]} 13. h3 {[%clk 0:02:42.7]} 13... Rac8 {[%clk 0:02:48.8]} 14.
g4 {[%clk 0:02:42.8]} 14... Nb4 {[%clk 0:02:48.6]} 15. Qd2 {[%clk 0:02:37.4]}
15... Nxd3 {[%clk 0:02:41.1]} 16. cxd3 {[%clk 0:02:37.3]} 16... Rc7 {[%clk
0:02:29.4]} 17. Rhc1 {[%clk 0:02:17.6]} 17... Rfc8 {[%clk 0:02:28]} 18. Rc2
{[%clk 0:01:52.2]} 18... Bxa4 {[%clk 0:02:15.7]} 19. Bd4 {[%clk 0:01:16.6]}
19... Qb4 {[%clk 0:02:05.7]} 20. Rcc1 {[%clk 0:00:42.3]} 20... Bb5 {[%clk
0:02:02.6]} 21. g5 {[%clk 0:00:30.4]} 21... Nh5 {[%clk 0:01:32.5]} 22. Nd5
{[%clk 0:00:28.1]} 22... Qxd2+ {[%clk 0:01:27.1]} 23. Kxd2 {[%clk 0:00:29]}
23... Rxc1 {[%clk 0:01:24.7]} 24. Rxc1 {[%clk 0:00:23.6]} 24... Rxc1 {[%clk
0:01:25]} 25. Kxc1 {[%clk 0:00:23.7]} 25... e6 {[%clk 0:01:22.7]} 26. Nf6+
{[%clk 0:00:14.6]} 26... Bxf6 {[%clk 0:01:22.5]} 27. Bxf6 {[%clk 0:00:13]} 27...
Bxd3 {[%clk 0:01:22.6]} 28. e5 {[%clk 0:00:13.6]} 28... dxe5 {[%clk 0:01:22.1]}
29. Nxe5 {[%clk 0:00:12.8]} 29... Nxf4 {[%clk 0:01:18.1]} 30. Kd2 {[%clk
0:00:11.3]} 30... Bf5 {[%clk 0:01:16.7]} 31. h4 {[%clk 0:00:11.5]} 31... Ng2
{[%clk 0:01:15.9]} 32. Nf3 {[%clk 0:00:11.6]} 32... Be4 {[%clk 0:01:15.2]} 33.
Ne5 {[%clk 0:00:10.4]} 33... Nxh4 {[%clk 0:01:13.9]} 34. Ke3 {[%clk 0:00:11.1]}
34... Bc6 {[%clk 0:01:09.3]} 35. Kd4 {[%clk 0:00:11.5]} 35... Nf3+ {[%clk
0:01:08.7]} 36. Nxf3 {[%clk 0:00:11]} 36... Bxf3 {[%clk 0:01:09.6]} 37. Ke5
{[%clk 0:00:11.6]} 37... Bd5 {[%clk 0:01:08.2]} 38. Be7 {[%clk 0:00:11.7]} 38...
h5 {[%clk 0:01:07.3]} 39. gxh6 {[%clk 0:00:11.9]} 39... Kh7 {[%clk 0:01:07.6]}
40. Bg5 {[%clk 0:00:12.2]} 40... a5 {[%clk 0:01:07]} 41. Kf6 {[%clk 0:00:12]}
41... b5 {[%clk 0:01:06.9]} 42. Kxf7 {[%clk 0:00:12]} 42... e5+ {[%clk
0:01:07.5]} 43. Kf6 {[%clk 0:00:12.6]} 43... e4 {[%clk 0:01:07.3]} 44. Ke5
{[%clk 0:00:13.2]} 44... Bc6 {[%clk 0:01:02.7]} 45. Kd4 {[%clk 0:00:13.6]} 45...
b4 {[%clk 0:01:02]} 46. Kc4 {[%clk 0:00:11.1]} 46... Bd7 {[%clk 0:00:59.3]} 47.
Bd8 {[%clk 0:00:10.3]} 47... a4 {[%clk 0:00:55.9]} 48. Kxb4 {[%clk 0:00:10.3]}
48... Kxh6 {[%clk 0:00:56.8]} 49. Kc4 {[%clk 0:00:10]} 49... Kh5 {[%clk
0:00:55.4]} 50. Kd4 {[%clk 0:00:10.4]} 50... Bc6 {[%clk 0:00:55.2]} 51. Ke3
{[%clk 0:00:10.2]} 51... Kg4 {[%clk 0:00:55]} 52. Bc7 {[%clk 0:00:09.3]} 52...
g5 {[%clk 0:00:54.6]} 53. Kf2 {[%clk 0:00:08]} 53... Kf5 {[%clk 0:00:53.6]} 54.
Bb8 {[%clk 0:00:06.2]} 54... Kg4 {[%clk 0:00:52.5]} 55. Bc7 {[%clk 0:00:05.4]}
55... Bd5 {[%clk 0:00:53.1]} 56. Bb8 {[%clk 0:00:05.7]} 56... Bc4 {[%clk
0:00:54]} 57. Bc7 {[%clk 0:00:06.1]} 57... Bd3 {[%clk 0:00:54.9]} 58. Bb8 {[%clk
0:00:06.7]} 58... Kf5 {[%clk 0:00:55.4]} 59. Bc7 {[%clk 0:00:07.2]} 59... Ke6
{[%clk 0:00:56.1]} 60. Bb8 {[%clk 0:00:07.7]} 60... Kd7 {[%clk 0:00:56.8]} 61.
Be5 {[%clk 0:00:07.4]} 61... Kc6 {[%clk 0:00:56.5]} 62. Ke3 {[%clk 0:00:07.4]}
62... Kd5 {[%clk 0:00:56.6]} 63. Bb8 {[%clk 0:00:07.6]} 63... Kc4 {[%clk
0:00:56.1]} 64. Be5 {[%clk 0:00:07.9]} 64... Kb3 {[%clk 0:00:55.6]} 65. Kd2
{[%clk 0:00:07.9]} 65... g4 {[%clk 0:00:52.7]} 66. Ke3 {[%clk 0:00:07.8]} 66...
g3 {[%clk 0:00:52.9]} 67. Bxg3 {[%clk 0:00:07]} 67... Kxb2 {[%clk 0:00:52.8]}
68. Be5+ {[%clk 0:00:07.3]} 68... Kb3 {[%clk 0:00:48.2]} 69. Kd2 {[%clk
0:00:06.3]} 69... a3 {[%clk 0:00:48.3]} 70. Bd4 {[%clk 0:00:06.4]} 70... Ka2
{[%clk 0:00:47.1]} 71. Kc1 {[%clk 0:00:06.8]} 71... Bc4 {[%clk 0:00:46.5]} 72.
Be3 {[%clk 0:00:05.3]} 72... Kb3 {[%clk 0:00:46]} 73. Kb1 {[%clk 0:00:05.9]}
73... a2+ {[%clk 0:00:44.9]} 74. Ka1 {[%clk 0:00:06.8]} 74... Kc2 {[%clk
0:00:45.1]} 75. Bb6 {[%clk 0:00:07.1]} 75... Kd3 {[%clk 0:00:45.6]} 76. Ba7
{[%clk 0:00:07.7]} 76... e3 {[%clk 0:00:46.1]} 77. Bxe3 {[%clk 0:00:08.1]} 77...
Kxe3 {[%clk 0:00:45.4]} 78. Kb2 {[%clk 0:00:09]} 78... Ke4 {[%clk 0:00:46.2]}
79. Ka1 {[%clk 0:00:09.9]} 79... Kd5 {[%clk 0:00:47.1]} 80. Kb2 {[%clk
0:00:10.8]} 80... Kc6 {[%clk 0:00:47.9]} 81. Ka1 {[%clk 0:00:11.7]} 81... Kb5
{[%clk 0:00:48.8]} 82. Kb2 {[%clk 0:00:12.6]} 82... Ka4 {[%clk 0:00:49.7]} 83.
Ka1 {[%clk 0:00:13.5]} 83... Bb3 {[%clk 0:00:50.3]} 84. Kb2 {[%clk 0:00:14.4]}
84... Bc2 {[%clk 0:00:50.9]} 85. Ka1 {[%clk 0:00:15.3]} 85... Bb1 {[%clk
0:00:51.7]} 86. Kb2 {[%clk 0:00:16.2]} 86... a1=Q+ {[%clk 0:00:51.9]} 87. Kxa1
{[%clk 0:00:17.1]} 1/2-1/2

[Event "Late-Titled-Tuesday-Blitz-March-19-2024"]
[Site "Chess.com"]
[Date "2024.03.19"]
[Round "8"]
[White "HaryKane"]
[Black "andrzej"]
[Result "1/2-1/2"]
[WhiteElo "2586"]
[BlackElo "2514"]
[TimeControl "180+1"]
[EndTime "15:28:32 PDT"]
[Termination "Game drawn - insufficient material"]

1. d4 {[%clk 0:03:00.9]} 1... d5 {[%clk 0:02:58.9]} 2. Nf3 {[%clk 0:02:58.6]}
2... Nf6 {[%clk 0:02:58.8]} 3. g3 {[%clk 0:02:57.6]} 3... c5 {[%clk 0:02:51.6]}
4. c3 {[%clk 0:02:53.7]} 4... e6 {[%clk 0:02:44.8]} 5. Bg2 {[%clk 0:02:53]} 5...
Nc6 {[%clk 0:02:45.2]} 6. O-O {[%clk 0:02:52.7]} 6... Bd7 {[%clk 0:02:45.4]} 7.
Nbd2 {[%clk 0:02:43.1]} 7... cxd4 {[%clk 0:02:43.5]} 8. cxd4 {[%clk 0:02:36.5]}
8... Qb6 {[%clk 0:02:43.8]} 9. e3 {[%clk 0:02:36.2]} 9... Rc8 {[%clk 0:02:41.1]}
10. a3 {[%clk 0:02:36]} 10... Na5 {[%clk 0:02:40.3]} 11. b4 {[%clk 0:02:33.8]}
11... Nc4 {[%clk 0:02:40]} 12. Nxc4 {[%clk 0:02:33.6]} 12... Rxc4 {[%clk
0:02:40.1]} 13. Ne5 {[%clk 0:02:31.7]} 13... Rc8 {[%clk 0:02:40.6]} 14. Nxd7
{[%clk 0:02:20.9]} 14... Nxd7 {[%clk 0:02:40.5]} 15. Bd2 {[%clk 0:02:14.5]}
15... Be7 {[%clk 0:02:40.1]} 16. Qb3 {[%clk 0:02:11.8]} 16... O-O {[%clk
0:02:39.4]} 17. a4 {[%clk 0:02:12.2]} 17... a5 {[%clk 0:02:35.2]} 18. b5 {[%clk
0:02:09.4]} 18... Rc4 {[%clk 0:02:34.8]} 19. Rfc1 {[%clk 0:02:08.2]} 19... Rfc8
{[%clk 0:02:35.4]} 20. Bf1 {[%clk 0:02:05.3]} 20... R4c7 {[%clk 0:02:35.1]} 21.
Rxc7 {[%clk 0:01:54.2]} 21... Rxc7 {[%clk 0:02:35]} 22. Rc1 {[%clk 0:01:53.8]}
22... Bd6 {[%clk 0:02:20]} 23. Bd3 {[%clk 0:01:39.3]} 23... h5 {[%clk
0:02:15.5]} 24. Qd1 {[%clk 0:01:28.5]} 24... g6 {[%clk 0:02:12.9]} 25. Qe1
{[%clk 0:01:21.6]} 25... Rxc1 {[%clk 0:02:00]} 26. Qxc1 {[%clk 0:01:22.5]} 26...
Qc7 {[%clk 0:01:59.6]} 27. Qb1 {[%clk 0:01:16]} 27... b6 {[%clk 0:01:55.1]} 28.
Bxg6 {[%clk 0:01:14.4]} 28... fxg6 {[%clk 0:01:54.4]} 29. Qxg6+ {[%clk
0:01:15.3]} 29... Kf8 {[%clk 0:01:54.5]} 30. e4 {[%clk 0:01:03.9]} 30... dxe4
{[%clk 0:01:25.1]} 31. Qxe6 {[%clk 0:01:01.8]} 31... Be7 {[%clk 0:01:16.2]} 32.
Qg6 {[%clk 0:00:58.3]} 32... Bf6 {[%clk 0:01:07.9]} 33. Bh6+ {[%clk 0:00:54.1]}
33... Ke7 {[%clk 0:01:07.3]} 34. Qxe4+ {[%clk 0:00:50.6]} 34... Kd8 {[%clk
0:01:04.3]} 35. Be3 {[%clk 0:00:40.3]} 35... Qd6 {[%clk 0:01:00]} 36. h4 {[%clk
0:00:26.9]} 36... Bg7 {[%clk 0:00:46.3]} 37. Bg5+ {[%clk 0:00:24.5]} 37... Kc8
{[%clk 0:00:46.7]} 38. Qe8+ {[%clk 0:00:21.3]} 38... Kb7 {[%clk 0:00:37.9]} 39.
Qxh5 {[%clk 0:00:20.8]} 39... Qxd4 {[%clk 0:00:34.1]} 40. Qf3+ {[%clk
0:00:21.4]} 40... Ka7 {[%clk 0:00:32.7]} 41. Qc6 {[%clk 0:00:15.9]} 41... Ne5
{[%clk 0:00:27.2]} 42. Qc7+ {[%clk 0:00:13.8]} 42... Ka8 {[%clk 0:00:27.2]} 43.
Be3 {[%clk 0:00:09]} 43... Nf3+ {[%clk 0:00:20]} 44. Kg2 {[%clk 0:00:09.2]}
44... Qd5 {[%clk 0:00:17.1]} 45. Qc6+ {[%clk 0:00:06.8]} 45... Qxc6 {[%clk
0:00:16.5]} 46. bxc6 {[%clk 0:00:07.7]} 46... Ne5 {[%clk 0:00:12.9]} 47. Bxb6
{[%clk 0:00:07.7]} 47... Nxc6 {[%clk 0:00:12.9]} 48. h5 {[%clk 0:00:06.7]} 48...
Kb7 {[%clk 0:00:13.5]} 49. Be3 {[%clk 0:00:05]} 49... Ne5 {[%clk 0:00:13.4]} 50.
h6 {[%clk 0:00:04.3]} 50... Bf8 {[%clk 0:00:13.2]} 51. f3 {[%clk 0:00:04.1]}
51... Nc4 {[%clk 0:00:11.7]} 52. Bf4 {[%clk 0:00:02.5]} 52... Nb6 {[%clk
0:00:11.7]} 53. g4 {[%clk 0:00:03.1]} 53... Nxa4 {[%clk 0:00:11.8]} 54. g5
{[%clk 0:00:03.1]} 54... Nc5 {[%clk 0:00:11.5]} 55. g6 {[%clk 0:00:03.7]} 55...
Ne6 {[%clk 0:00:11.6]} 56. Be3 {[%clk 0:00:03.2]} 56... a4 {[%clk 0:00:11.3]}
57. g7 {[%clk 0:00:02.7]} 57... Nxg7 {[%clk 0:00:11]} 58. hxg7 {[%clk
0:00:03.6]} 58... Bxg7 {[%clk 0:00:11.8]} 59. Bc1 {[%clk 0:00:04.1]} 59... Kc6
{[%clk 0:00:11.3]} 60. Kg3 {[%clk 0:00:04.8]} 60... Kb5 {[%clk 0:00:11.6]} 61.
Kg4 {[%clk 0:00:05.5]} 61... Kc4 {[%clk 0:00:12]} 62. f4 {[%clk 0:00:06]} 62...
Kb3 {[%clk 0:00:12.1]} 63. f5 {[%clk 0:00:05]} 63... Bb2 {[%clk 0:00:12.5]} 64.
Bxb2 {[%clk 0:00:05.4]} 64... Kxb2 {[%clk 0:00:12.7]} 65. f6 {[%clk 0:00:06.2]}
65... a3 {[%clk 0:00:13.3]} 66. f7 {[%clk 0:00:07.1]} 66... a2 {[%clk
0:00:13.8]} 67. f8=Q {[%clk 0:00:07.9]} 67... a1=Q {[%clk 0:00:14.1]} 68. Qf6+
{[%clk 0:00:08.6]} 68... Kb1 {[%clk 0:00:14.4]} 69. Qxa1+ {[%clk 0:00:09.5]}
69... Kxa1 {[%clk 0:00:14.8]} 1/2-1/2